Cogmind - Beta 14 @@@ ROGUE MODE // 2024.09.19 @ 17:07:58 Player: Mutetourette Result: Destroyed by Y-45 Defender with Heavy Assault Rifle Performance ------------- Evolutions (2) 1000 Regions Visited (4) 800 Robots Destroyed (46) 230 Value Destroyed (1223) 1223 Prototype IDs (2) 40 Alien Tech Used (0) 0 Bonus (0) 0 TOTAL SCORE: 3293 Bonus ------- None Cogmind --------- Core Integrity 0/550 Matter 123/300 Energy 100/100 System Corruption 7% Temperature Warm (131) Movement Core (50) Location -8/Storage Parts ------- > --- POWER (2) -------- (None) > --- PROPULSION (2) --- (None) > --- UTILITY (3) ------ Advanced Weight Redist. System > --- WEAPON (4) ------- (None) > --- INVENTORY (5) ---- Armored Treads Weight Redist. System Improved Terrain Scanner Shock Rifle Peak State ------------ > --- POWER ------------ Improved Deuterium Engine Improved Deuterium Engine > --- PROPULSION ------- Aluminum Leg Improved Aluminum Leg > --- UTILITY ---------- Medium Matter Pod Trap Scanner Hardened Medium Armor Plating > --- WEAPON ----------- Heavy EM Shotgun Advanced Beam Rifle Advanced Beam Rifle Advanced Beam Rifle > --- INVENTORY -------- Aluminum Leg Aluminum Leg Weight Redist. System Heavy Assault Rifle Heavy Assault Rifle [Rating: 34] Favorites ----------- Power Ion Engine Engine Ion Engine Propulsion Aluminum Leg Leg Aluminum Leg Flight Unit Flight Unit Utility Medium Matter Pod Device Trap Scanner Storage Medium Matter Pod Protection Hardened Medium Armor Plating Weapon Heavy Assault Rifle Energy Gun Advanced Beam Rifle Ballistic Gun Heavy Assault Rifle Launcher Grenade Launcher Build | -11 -10 -9 -8 -8 ------- Run | Yrd Mat Mat Mat Sto Slots Evolved 4 | . . 2 2 . Power 1 | . . 1 . . Propulsion . | . . . . . Utility 1 | . . . 1 . Weapon 2 | . . 1 1 . Parts Attached 56 | 5 15 15 21 . Power 7 | 1 1 3 2 . Engine 7 | 1 1 3 2 . Core . | . . . . . Reactor . | . . . . . Propulsion 14 | 2 2 4 6 . Treads . | . . . . . Leg 12 | 2 2 4 4 . Wheel . | . . . . . Hover . | . . . . . Flight 2 | . . . 2 . Utility 13 | 1 6 3 3 . Device 4 | . 1 . 3 . Storage 5 | 1 4 . . . Processor . | . . . . . Hackware . | . . . . . Protection 4 | . 1 3 . . Artifact . | . . . . . Weapon 22 | 1 6 5 10 . Energy Gun 9 | 1 2 . 6 . Energy Cannon . | . . . . . Ballistic Gun 11 | . 3 4 4 . Ballistic Cannon . | . . . . . Launcher 2 | . 1 1 . . Special Weapon . | . . . . . Impact Weapon . | . . . . . Slashing Weapon . | . . . . . Piercing Weapon . | . . . . . Special Melee Weapon . | . . . . . Unidentified Prototypes 1 | . . . 1 . Parts Lost 18 | . 4 3 10 1 Power 3 | . 1 . 2 . Propulsion 4 | . . 2 2 . Utility 3 | . 1 . 2 . Weapon 8 | . 2 1 4 1 Highest Loss Streak 4 | . 2 1 4 3 To Critical Strikes . | . . . . . Average Slot Usage (%) 83 | . 93 84 75 12 Engine 15 | . 13 17 14 . Leg 19 | . 28 19 14 . Device 2 | . 5 . 5 9 Storage 12 | . 21 11 8 . Protection 7 | . . 10 6 . Energy Gun 5 | . 10 . 12 3 Ballistic Gun 16 | . 13 21 11 . Launcher 2 | . . 4 . . Peak Build Rating 34 | 5 9 13 34 8 Average Rating 11 | 3 7 10 21 5 On Entrance 6 | . 5 7 13 8 Naked Turns . | . . . . . Heaviest Build 92 | 12 92 24 43 2 Greatest Support 29 | 20 20 23 29 3 Greatest Overweight (x) 10 | . 4 2 10 . Average Overweight (x) . | . . 1 . . Largest Inventory Capacity 25 | 8 25 8 5 5 Average Capacity 5 | 7 8 5 5 5 Most Carried 8 | 5 8 6 5 4 Average Carried 2 | 1 2 1 2 4 Final Capacity 8 | 8 8 5 5 5 Final Carried 6 | 2 6 2 4 4 Class Distribution -------------------- 35% | Scavenger-Mutant 33% | Mutant 26% | Scavenger-Tank 3% | Scavenger-Gunner Dominant Class ---------------- Mutant | -10/Materials Scavenger-Mutant | -9/Materials Scavenger-Tank | -8/Materials Mutant | -8/Storage Resources | -11 -10 -9 -8 -8 ----------- Run | Yrd Mat Mat Mat Sto Matter Collected 1145 | 250 181 574 140 . Remotely . | . . . . . Salvage Created 1578 | 163 306 676 433 . Parts 108 | 14 24 47 23 . Haulers Intercepted . | . . . . . Recyclers Shooed 5 | 1 1 2 1 . Parts Field Recycled . | . . . . . Retrieved Matter . | . . . . . Parts Self-Destructed . | . . . . . Prevented . | . . . . . Kills | -11 -10 -9 -8 -8 ------- Run | Yrd Mat Mat Mat Sto Combat Hostiles Destroyed 31 | . 8 14 9 . Guns 27 | . 8 10 9 . AOE 4 | . . 4 . . Classes Destroyed 11 | 3 3 3 2 . Worker 5 | 1 2 1 1 . Builder 3 | . . 2 1 . Tunneler 3 | 2 . 1 . . Recycler 2 | 1 . 1 . . Watcher 2 | . 1 1 . . Swarmer 6 | . 3 . 3 . Grunt 14 | . 5 8 1 . Brawler 1 | . . . 1 . Duelist 2 | . . 1 1 . Sentry 6 | . . 5 1 . Hunter 2 | . . . 2 . Best Kill Streak 4 | 4 4 3 4 . Combat Bots Only 4 | . 4 3 4 . Max Kills in Single Turn 2 | 1 2 1 1 . Gunslinging . | . . . . . Exploded 1 | . . 1 . . Melee . | . . . . . Uniques/NPCs Destroyed . | . . . . . Combat | -11 -10 -9 -8 -8 -------- Run | Yrd Mat Mat Mat Sto Hostile Shots Fired 287 | . 65 63 135 24 Missed 84 | . 17 21 40 6 Damage Taken 2655 | 28 540 550 1257 280 Core 724 | . 106 57 304 257 Absorbed by Shields . | . . . . . Core Remaining (%) 80 | 100 57 85 . . Volleys Fired 174 | 12 50 69 43 . Largest 4 | 1 2 3 4 . Hottest 233 | 40 80 73 233 . Shots Fired 306 | 12 84 129 81 . Gun 289 | 12 83 113 81 . Cannon . | . . . . . Launcher 17 | . 1 16 . . Special . | . . . . . Kinetic 168 | . 24 113 31 . Thermal 87 | . 53 . 34 . Explosive 17 | . 1 16 . . Electromagnetic 34 | 12 6 . 16 . Robot Hit Streak 18 | 3 12 18 7 . Robot Miss Streak 6 | 3 4 6 5 . Penetration Max . | . . . . . Secondary Targets 1 | . . 1 . . Max Gunslinging Chain 1 | . . 1 . . Shots Hit Robots 176 | 6 51 68 51 . Core Hits 80 | 5 19 36 19 1 Critical Kills . | . . . . . Critical Parts Destroyed 1 | . . 1 . . Critical Strikes 3 | . . 1 2 . Burn 2 | . . . 2 . Destroy 1 | . . 1 . . Melee Attacks . | . . . . . Impact . | . . . . . Slashing . | . . . . . Piercing . | . . . . . Sneak Attacks . | . . . . . Combat Hostiles . | . . . . . Follow-up Attacks . | . . . . . Damage Inflicted 2699 | 112 518 1132 905 32 Guns 2206 | 69 511 721 905 . Cannons . | . . . . . Explosions 454 | 43 . 411 . . Melee . | . . . . . Ramming 39 | . 7 . . 32 Kinetic 1088 | . 126 721 241 . Thermal 863 | 43 358 . 462 . Explosive 411 | . . 411 . . Electromagnetic 298 | 69 27 . 202 . Impact . | . . . . . Slashing . | . . . . . Piercing . | . . . . . Highest Corruption 7 | . . 2 5 7 Average Corruption 2 | . . 1 4 6 Corruption Purged . | . . . . . Corruption Blocked . | . . . . . Effects 18 | . . 12 5 1 Message Errors 4 | . . 3 1 . Matter Fused 5 | . . 4 1 . Heat Flow Errors 5 | . . 2 2 1 Energy Discharges 1 | . . . 1 . Data Loss (major) 2 | . . 2 . . Weapon Failures 1 | . . 1 . . Overload Shots . | . . . . . Overflow Damage 8 | . . 8 . . Projectiles . | . . . . . Explosions 8 | . . 8 . . Melee . | . . . . . Knockbacks . | . . . . . Impact . | . . . . . Kinetic . | . . . . . Secondary . | . . . . . Self-Inflicted Damage 42 | 28 . . . 14 Shots 1 | 1 . . . . Rammed 9 | . . . . 9 Targets Rammed 11 | . 1 1 . 9 Kicked 2 | . 1 1 . . Crushed . | . . . . . Highest Temperature 572 | 12 241 185 572 250 Average Temperature 141 | 12 119 33 266 177 Received Heat Transfer 771 | . 252 330 81 108 Effects 39 | . 3 . 36 . Shutdowns 9 | . . . 9 . Energy Bleed 5 | . 3 . 2 . Interference 6 | . . . 6 . Matter Decay 4 | . . . 4 . Short Circuit 6 | . . . 6 . Damage (minor) 4 | . . . 4 . Damage (major) 4 | . . . 4 . Damage (core) 1 | . . . 1 . Siege Activations . | . . . . . Robots Corrupted . | . . . . . Combat Hostiles . | . . . . . Parts Fried 1 | . . . 1 . Impact Corruptions . | . . . . . Robots Melted . | . . . . . Combat Hostiles . | . . . . . Parts Melted 3 | . 2 . 1 . Heat Transferred 1874 | 50 825 . 999 . Parts Sabotaged . | . . . . . Parts Stolen . | . . . . . Parts Stripped . | . . . . . Power Chain Reactions 1 | 1 . . . . Alert | -11 -10 -9 -8 -8 ------- Run | Yrd Mat Mat Mat Sto Peak Influence 315 | 20 268 308 315 86 Initial 91 | . 13 30 91 71 Average 143 | 3 135 149 182 75 Maximum Alert Level 1 | . 1 1 1 . Low Security (%) 68 | 100 65 71 52 100 Level 1 31 | . 34 28 47 . Level 2 . | . . . . . Level 3 . | . . . . . Level 4 . | . . . . . Level 5 . | . . . . . High Security . | . . . . . Max Security . | . . . . . Squads Dispatched 6 | . 1 2 3 . Investigation . | . . . . . Extermination . | . . . . . Reinforcement 3 | . 1 2 . . Assault . | . . . . . Garrison 3 | . . . 3 . Intercept . | . . . . . Searches Triggered . | . . . . . Construction Impeded 1 | . . 1 . . Haulers Reinforced . | . . . . . Active Scanning Responses . | . . . . . Cargo Convoy Interrupts . | . . . . . Stealth | -11 -10 -9 -8 -8 --------- Run | Yrd Mat Mat Mat Sto Distress Signals 4 | . 1 1 2 . Communications Jammed . | . . . . . Distress Signals . | . . . . . Times Spotted 53 | . 11 23 18 1 Peak Tracking Total 7 | . 4 4 7 1 Tactical Retreats 4 | . 1 2 1 . Traps | -11 -10 -9 -8 -8 ------- Run | Yrd Mat Mat Mat Sto Traps Triggered 3 | . . 3 . . Indirectly . | . . . . . Trap Hack Attempts . | . . . . . Triggered . | . . . . . Disarmed . | . . . . . Reprogrammed . | . . . . . Reused . | . . . . . Traps Extracted . | . . . . . Installed . | . . . . . Triggered . | . . . . . Machines | -11 -10 -9 -8 -8 ---------- Run | Yrd Mat Mat Mat Sto Machines Disabled 4 | . 1 1 2 . Max in Single Turn 1 | . 1 1 1 . Machines Repaired . | . . . . . Machines Dismantled . | . . . . . Machines Sabotaged . | . . . . . Overloaded Fab Kills . | . . . . . Hacking | -11 -10 -9 -8 -8 --------- Run | Yrd Mat Mat Mat Sto Machines Accessed 6 | . 3 1 2 . Terminals 4 | . 3 1 . . Fabricators . | . . . . . Repair Stations . | . . . . . Recycling Units . | . . . . . Scanalyzers 1 | . . . 1 . Garrison Access 1 | . . . 1 . Total Hacks 17 | . 9 4 4 . Successful 11 | . 5 2 4 . Failed 6 | . 4 2 . . Catastrophic . | . . . . . Database Lockouts . | . . . . . Manual 2 | . 2 . . . Terminals 13 | . 9 4 . . Fabricators . | . . . . . Repair Stations . | . . . . . Recycling Units . | . . . . . Scanalyzers 3 | . . . 3 . Garrison Access 1 | . . . 1 . Terminal Hacks 7 | . 5 2 . . Record 2 | . 1 1 . . Robot Analysis 2 | . 2 . . . Locate Traps 1 | . 1 . . . Patrol Status 1 | . 1 . . . Zone Layout 1 | . . 1 . . Fabricator Hacks . | . . . . . Repair Station Hacks . | . . . . . Recycling Unit Hacks . | . . . . . Scanalyzer 3 | . . . 3 . Insert Component 2 | . . . 2 . Analyze 1 | . . . 1 . Garrison Access Hacks 1 | . . . 1 . Unlock Access 1 | . . . 1 . Unauthorized Hacks . | . . . . . Terminals . | . . . . . Fabricators . | . . . . . Repair Stations . | . . . . . Recycling Units . | . . . . . Scanalyzers . | . . . . . Garrison Access . | . . . . . Data Cores Recovered . | . . . . . Used . | . . . . . Hacking Detections 6 | . 3 1 2 . Full Trace Events 1 | . 1 . . . Feedback Events . | . . . . . Feedback Blocked . | . . . . . Robot Schematics Acquired . | . . . . . Robots Built . | . . . . . Authchips . | . . . . . Time . | . . . . . Total Robot Build Rating . | . . . . . Part Schematics Acquired . | . . . . . Parts Built . | . . . . . Authchips . | . . . . . Time . | . . . . . Total Part Build Rating . | . . . . . Parts Repaired . | . . . . . Time . | . . . . . Parts Recycled . | . . . . . Recycled Matter . | . . . . . Retrieved Matter . | . . . . . Retrieved Components . | . . . . . Parts Scanalyzed 1 | . . . 1 . Part Schematics Acquired . | . . . . . Parts Damaged . | . . . . . Bothacking | -11 -10 -9 -8 -8 ------------ Run | Yrd Mat Mat Mat Sto Used RIF Installer . | . . . . . Robots Hacked . | . . . . . Non-combat . | . . . . . Combat . | . . . . . Robot Hacks Applied . | . . . . . Relay Couplers Released . | . . . . . Fabnet Peak Effective % . | . . . . . Robots Rewired . | . . . . . Allies Hacked . | . . . . . Hacks Repelled . | . . . . . Allies | -11 -10 -9 -8 -8 -------- Run | Yrd Mat Mat Mat Sto Total Allies . | . . . . . Largest Group . | . . . . . Highest-Rated Group . | . . . . . Highest-Rated Ally . | . . . . . Total Orders . | . . . . . Ally Attacks . | . . . . . Total Damage . | . . . . . Kills . | . . . . . Allies Corrupted . | . . . . . Allies Melted . | . . . . . Intel | -11 -10 -9 -8 -8 ------- Run | Yrd Mat Mat Mat Sto Robot Analysis Total 2 | . 2 . . . Derelict Logs Recovered . | . . . . . Drone Launches . | . . . . . Drone Recoveries . | . . . . . Exploration | -11 -10 -9 -8 -8 ------------- Run | Yrd Mat Mat Mat Sto Turns Passed 2199 | 115 495 1089 457 43 Spaces Moved 1054 | 78 266 430 242 38 Core 95 | 37 1 . 19 38 Treads . | . . . . . Legs 848 | 41 265 430 112 . Wheels . | . . . . . Hover . | . . . . . Flight 111 | . . . 111 . Fastest Speed 37 | 50 120 120 37 50 Average Speed 145 | 86 122 195 116 50 Slowest Speed 550 | 120 400 260 550 50 Overloaded Moves . | . . . . . Propulsion Burnouts . | . . . . . Robots Hopped 5 | . . . 5 . Cave-ins Triggered . | . . . . . Exploration Rate (%) 21 | 6 36 37 22 7 Regions Visited 4 Branch Regions 1 Pre-discovered Areas . | . . . . . Known Exits Taken . | . . . . . Unknown Exits Taken 4 | 1 1 1 1 . Scrap Searched . | . . . . . Spaces Dug . | . . . . . Terrain Destroyed 121 | 2 7 112 . . Melee . | . . . . . Projectile . | . . . . . AOE 121 | 2 7 112 . . Terrain Rammed . | . . . . . Walls Destroyed . | . . . . . Machines Disabled . | . . . . . Actions | -11 -10 -9 -8 -8 --------- Run | Yrd Mat Mat Mat Sto Total 1441 | 113 360 562 344 62 Wait 62 | 12 5 17 13 15 Move 1042 | 77 265 429 233 38 Hop 3 | . . . 3 . Pick Up 54 | 7 14 16 17 . Fast Attach 2 | . 1 . 1 . Attach 43 | 5 14 13 11 . Detach 8 | . 5 1 2 . Swap 11 | . . 2 9 . Drop 31 | . 5 14 12 . Fire 174 | 12 50 69 43 . Melee . | . . . . . Ram 9 | . . . . 9 Kick 2 | . 1 1 . . Crush . | . . . . . Escape Stasis . | . . . . . Rewire . | . . . . . Trap . | . . . . . Miscellaneous . | . . . . . Route ------- -11/Scrapyard -10/Materials -9/Materials -8/Materials (discovered 2 exits: [*Sto] / Gar) -8/Storage History --------- Turn | Location | Event 13 | -11/Scrapyard | Discovered new exit (range 16) 116 | -11/Scrapyard | Entered Materials 310 | -10/Materials | Build established: Mutant 471 | -10/Materials | Discovered new exit (range 16) 611 | -10/Materials | Entered another Materials area 611 | -9/Materials | Evolved 2 slots: Power x1, Weapon x1 901 | -9/Materials | Build established: Scavenger-Tank 1340 | -9/Materials | Build established: Scavenger-Mutant 1662 | -9/Materials | Discovered new exit (range 7) 1700 | -9/Materials | Entered another Materials area 1700 | -8/Materials | Evolved 2 slots: Utility x1, Weapon x1 1820 | -8/Materials | Identified exit to Garrison 1857 | -8/Materials | Garrison activated, responded to threat 2045 | -8/Materials | Lost 3 parts (2u1w) 2109 | -8/Materials | Lost 4 parts (2p2w) 2118 | -8/Materials | Discovered new exit (range 12) 2150 | -8/Materials | Core integrity fell below 50% 2157 | -8/Materials | Entered Storage 2189 | -8/Storage | Core integrity fell below 20% 2200 | -8/Storage | Destroyed by Y-45 Defender with Heavy Assault Rifle Last Messages --------------- 02146_ K-01 Serf cleans the Fusion Modulator. 02149_ Critical hit (Burn: +37). 02152_ Flight Unit destroyed. 02152_ Critical hit (Burn: +37). LOCATION=UNKNOWN GOAL=ESCAPE 02162_ T-07 Excavator is excavating. 02167_ Slammed into Y-45 Defender. 02169_ Destabilizing: Core damaged (-5). 02170_ Slammed into Y-45 Defender. 02170_ Destabilizing: System corrupted (+2). 02170_ Adv. Beam Rifle destroyed. 02171_ Slammed into Y-45 Defender. 02173_ Critical hit (Burn: +37). 02174_ Slammed into Y-45 Defender. 02178_ T-07 Excavator is excavating. 02194_ System corrupted: Heat flow error (+272). 02200_ Critical hit (Burn: +37). [Achievement: First Step to Greatness] Map ----- +----------------------------------------------------+ | | | | | | | | | | | | | | | | | | | | | | | | | | | | | | | | | | | | | ??????????????????###########????????????????????? | | ??????????????????# #######??????????????? | | ??????????????????# # ###########????? | | ??????????????????# """ """ # #????? | | ??????????????????# """ """ + #????? | | ??????????????????# """ """ # #????? | | ??????????????????# Y # ###########????? | | ??????????????????# @ ## ##??????????????? | | ??????????????????# ## #???????????????? | | ??????????????????######## ### #???????????????? | | ?????????????????????????## ## #???????????????? | | ??????????????????????????? # #???????????????? | | ??????????????????????????? #???????????????? | | ???????????????????????????# # #???????????????? | | ?????????????????????????????# #???????????????? | | ?????????????????????????????# #???????????????? | | ?????????????????????????????# #???????????????? | | ?????????????????????????????# #???????????????? | | ?????????????????????????????# #???????????????? | | ?????????????????????????????# #???????????????? | | ?????????????????????????????? ????????????????? | | ?????????????????????????????? ????????????????? | | ?????????????????????????????????????????????????? | | ?????????????????????????????????????????????????? | | ?????????????????????????????????????????????????? | | ?????????????????????????????????????????????????? | | ?????????????????????????????????????????????????? | | ?????????????????????????????????????????????????? | | ?????????????????????????????????????????????????? | | ?????????????????????????????????????????????????? | | ?????????????????????????????????????????????????? | | ?????????????????????????????????????????????????? | +----------------------------------------------------+ Best States ------------- Heat Dissipation 31 Energy Generation 27 Energy Capacity 480 Matter Stores 400 Matter Capacity 400 Sight Range 16 Terrain Scan Density 10 Additional Mass Support 6 Armor Coverage 225 Propulsion Shielding 33 Evasion (%) 62 Item Schematics ----------------- None Robot Schematics ------------------ None Fabricated ------------ Nothing Alien Tech Used ----------------- None Achievements -------------- Cya! First Step to Greatness Hey, That's Mine! Risk Taker Safety First Storm Trooper Troublemaker Challenges ------------ None Game ------ Seed PiercingSwarmRailgun Manual? 0 Play Time 00:53:48 Cumulative 3.2 hours Start 2024.09.19 @ 15:41:52 End 2024.09.19 @ 17:07:58 Sessions 1 Manual Loads 0 Difficulty Rogue Special Mode None Game No. 7 Rogue 7 Adventurer 0 Explorer 0 Win Type - Total 0 Types 0/0/0/0/0/0/0/0/0 Lore% 1 Gallery% 6 Achievement% 4 Wizard Run 0 Options --------- Layout 1 ASCII 0 Keyboard 0 Movement Mouse Keybinds 0 Fullscreen 1 Font 24/Smallcaps Map View 50x35 Zoom Use 10% Tactical HUD 1 Map Filters NONE Filters NONE Steam 1 RUN: 5927056c-0ea7-43d4-adfd-5dc95ad342e3